{"text_format":"1","workbook":"xlsx","n_sheets":2,"sheets":["HVT","Edit Your Custom HVT on TAB"],"not_rendered":{"charts":1,"images":1,"macros":1,"external_links":0,"defined_names":0,"comments":0,"pivot_tables":0},"unopened":[],"bounds":{"document_bytes":16777216,"sheet_cells":100000,"rows_first":2000,"rows_last":500,"rows_between":2000,"halvings":0,"cell_chars":16384,"cell_head_chars":4096},"cells_cut":0,"cells_raw":0,"read":"whole","date_system":"1900"}

{"sheet":"HVT","index":0,"n_rows":30,"n_cols":8,"rows_kept":30,"cut":false,"hidden":false,"merged":[]}
[]
[]
[null,null,null,"High Value Trade Table"]
[null,null,null,"Customer Ask ","Points",null,"Your Ask","Points"]
[1,null,true,{"$f":"IFERROR(INDEX('Edit Your Custom HVT on TAB'!$C$5:$C$24,MATCH(HVT!$A5,'Edit Your Custom HVT on TAB'!$B$5:$B$24,0)),\"\")","v":" Literature"},{"$f":"IFERROR(IF(C5=TRUE,INDEX('Edit Your Custom HVT on TAB'!$D$5:$D$24,MATCH(HVT!$D5,'Edit Your Custom HVT on TAB'!$C$5:$C$24,0)),0),\"\")","v":1},true,{"$f":"IFERROR(INDEX('Edit Your Custom HVT on TAB'!$E$5:$E$24,MATCH(HVT!$A5,'Edit Your Custom HVT on TAB'!$B$5:$B$24,0)),\"\")","v":"Contact Info w Cell Phone"},{"$f":"IFERROR(IF(F5=TRUE,INDEX('Edit Your Custom HVT on TAB'!$F$5:$F$24,MATCH(HVT!$G5,'Edit Your Custom HVT on TAB'!$E$5:$E$24,0)),0),\"\")","v":1}]
[{"$f":"A5+1","v":2},null,true,{"$f":"IFERROR(INDEX('Edit Your Custom HVT on TAB'!$C$5:$C$24,MATCH(HVT!$A6,'Edit Your Custom HVT on TAB'!$B$5:$B$24,0)),\"\")","v":"Technical Documentation"},{"$f":"IFERROR(IF(C6=TRUE,INDEX('Edit Your Custom HVT on TAB'!$D$5:$D$24,MATCH(HVT!$D6,'Edit Your Custom HVT on TAB'!$C$5:$C$24,0)),0),\"\")","v":2},true,{"$f":"IFERROR(INDEX('Edit Your Custom HVT on TAB'!$E$5:$E$24,MATCH(HVT!$A6,'Edit Your Custom HVT on TAB'!$B$5:$B$24,0)),\"\")","v":"Budget/Timing "},{"$f":"IFERROR(IF(F6=TRUE,INDEX('Edit Your Custom HVT on TAB'!$F$5:$F$24,MATCH(HVT!$G6,'Edit Your Custom HVT on TAB'!$E$5:$E$24,0)),0),\"\")","v":2}]
[{"$f":"A6+1","v":3},null,true,{"$f":"IFERROR(INDEX('Edit Your Custom HVT on TAB'!$C$5:$C$24,MATCH(HVT!$A7,'Edit Your Custom HVT on TAB'!$B$5:$B$24,0)),\"\")","v":" Meetings - Phone"},{"$f":"IFERROR(IF(C7=TRUE,INDEX('Edit Your Custom HVT on TAB'!$D$5:$D$24,MATCH(HVT!$D7,'Edit Your Custom HVT on TAB'!$C$5:$C$24,0)),0),\"\")","v":3},true,{"$f":"IFERROR(INDEX('Edit Your Custom HVT on TAB'!$E$5:$E$24,MATCH(HVT!$A7,'Edit Your Custom HVT on TAB'!$B$5:$B$24,0)),\"\")","v":"Partner Identify"},{"$f":"IFERROR(IF(F7=TRUE,INDEX('Edit Your Custom HVT on TAB'!$F$5:$F$24,MATCH(HVT!$G7,'Edit Your Custom HVT on TAB'!$E$5:$E$24,0)),0),\"\")","v":3}]
[4,null,true,{"$f":"IFERROR(INDEX('Edit Your Custom HVT on TAB'!$C$5:$C$24,MATCH(HVT!$A8,'Edit Your Custom HVT on TAB'!$B$5:$B$24,0)),\"\")","v":"LinkedIn References/List"},{"$f":"IFERROR(IF(C8=TRUE,INDEX('Edit Your Custom HVT on TAB'!$D$5:$D$24,MATCH(HVT!$D8,'Edit Your Custom HVT on TAB'!$C$5:$C$24,0)),0),\"\")","v":4},false,{"$f":"IFERROR(INDEX('Edit Your Custom HVT on TAB'!$E$5:$E$24,MATCH(HVT!$A8,'Edit Your Custom HVT on TAB'!$B$5:$B$24,0)),\"\")","v":"CBI-Critical Business Issue"},{"$f":"IFERROR(IF(F8=TRUE,INDEX('Edit Your Custom HVT on TAB'!$F$5:$F$24,MATCH(HVT!$G8,'Edit Your Custom HVT on TAB'!$E$5:$E$24,0)),0),\"\")","v":0}]
[5,null,true,{"$f":"IFERROR(INDEX('Edit Your Custom HVT on TAB'!$C$5:$C$24,MATCH(HVT!$A9,'Edit Your Custom HVT on TAB'!$B$5:$B$24,0)),\"\")","v":"Web Demo"},{"$f":"IFERROR(IF(C9=TRUE,INDEX('Edit Your Custom HVT on TAB'!$D$5:$D$24,MATCH(HVT!$D9,'Edit Your Custom HVT on TAB'!$C$5:$C$24,0)),0),\"\")","v":5},false,{"$f":"IFERROR(INDEX('Edit Your Custom HVT on TAB'!$E$5:$E$24,MATCH(HVT!$A9,'Edit Your Custom HVT on TAB'!$B$5:$B$24,0)),\"\")","v":"Customer Requirements Doc"},{"$f":"IFERROR(IF(F9=TRUE,INDEX('Edit Your Custom HVT on TAB'!$F$5:$F$24,MATCH(HVT!$G9,'Edit Your Custom HVT on TAB'!$E$5:$E$24,0)),0),\"\")","v":0}]
[6,null,false,{"$f":"IFERROR(INDEX('Edit Your Custom HVT on TAB'!$C$5:$C$24,MATCH(HVT!$A10,'Edit Your Custom HVT on TAB'!$B$5:$B$24,0)),\"\")","v":"Quotation - Budgetary"},{"$f":"IFERROR(IF(C10=TRUE,INDEX('Edit Your Custom HVT on TAB'!$D$5:$D$24,MATCH(HVT!$D10,'Edit Your Custom HVT on TAB'!$C$5:$C$24,0)),0),\"\")","v":0},true,{"$f":"IFERROR(INDEX('Edit Your Custom HVT on TAB'!$E$5:$E$24,MATCH(HVT!$A10,'Edit Your Custom HVT on TAB'!$B$5:$B$24,0)),\"\")","v":"Accepted LinkedIn Invite "},{"$f":"IFERROR(IF(F10=TRUE,INDEX('Edit Your Custom HVT on TAB'!$F$5:$F$24,MATCH(HVT!$G10,'Edit Your Custom HVT on TAB'!$E$5:$E$24,0)),0),\"\")","v":6}]
[7,null,false,{"$f":"IFERROR(INDEX('Edit Your Custom HVT on TAB'!$C$5:$C$24,MATCH(HVT!$A11,'Edit Your Custom HVT on TAB'!$B$5:$B$24,0)),\"\")","v":" Legal/Contracts Meeting"},{"$f":"IFERROR(IF(C11=TRUE,INDEX('Edit Your Custom HVT on TAB'!$D$5:$D$24,MATCH(HVT!$D11,'Edit Your Custom HVT on TAB'!$C$5:$C$24,0)),0),\"\")","v":0},true,{"$f":"IFERROR(INDEX('Edit Your Custom HVT on TAB'!$E$5:$E$24,MATCH(HVT!$A11,'Edit Your Custom HVT on TAB'!$B$5:$B$24,0)),\"\")","v":"Procurement Process"},{"$f":"IFERROR(IF(F11=TRUE,INDEX('Edit Your Custom HVT on TAB'!$F$5:$F$24,MATCH(HVT!$G11,'Edit Your Custom HVT on TAB'!$E$5:$E$24,0)),0),\"\")","v":7}]
[8,null,false,{"$f":"IFERROR(INDEX('Edit Your Custom HVT on TAB'!$C$5:$C$24,MATCH(HVT!$A12,'Edit Your Custom HVT on TAB'!$B$5:$B$24,0)),\"\")","v":"Competitive Data"},{"$f":"IFERROR(IF(C12=TRUE,INDEX('Edit Your Custom HVT on TAB'!$D$5:$D$24,MATCH(HVT!$D12,'Edit Your Custom HVT on TAB'!$C$5:$C$24,0)),0),\"\")","v":0},false,{"$f":"IFERROR(INDEX('Edit Your Custom HVT on TAB'!$E$5:$E$24,MATCH(HVT!$A12,'Edit Your Custom HVT on TAB'!$B$5:$B$24,0)),\"\")","v":"NDA"},{"$f":"IFERROR(IF(F12=TRUE,INDEX('Edit Your Custom HVT on TAB'!$F$5:$F$24,MATCH(HVT!$G12,'Edit Your Custom HVT on TAB'!$E$5:$E$24,0)),0),\"\")","v":0}]
[9,null,true,{"$f":"IFERROR(INDEX('Edit Your Custom HVT on TAB'!$C$5:$C$24,MATCH(HVT!$A13,'Edit Your Custom HVT on TAB'!$B$5:$B$24,0)),\"\")","v":"Company Financials"},{"$f":"IFERROR(IF(C13=TRUE,INDEX('Edit Your Custom HVT on TAB'!$D$5:$D$24,MATCH(HVT!$D13,'Edit Your Custom HVT on TAB'!$C$5:$C$24,0)),0),\"\")","v":9},false,{"$f":"IFERROR(INDEX('Edit Your Custom HVT on TAB'!$E$5:$E$24,MATCH(HVT!$A13,'Edit Your Custom HVT on TAB'!$B$5:$B$24,0)),\"\")","v":"Financial Buyer"},{"$f":"IFERROR(IF(F13=TRUE,INDEX('Edit Your Custom HVT on TAB'!$F$5:$F$24,MATCH(HVT!$G13,'Edit Your Custom HVT on TAB'!$E$5:$E$24,0)),0),\"\")","v":0}]
[10,null,false,{"$f":"IFERROR(INDEX('Edit Your Custom HVT on TAB'!$C$5:$C$24,MATCH(HVT!$A14,'Edit Your Custom HVT on TAB'!$B$5:$B$24,0)),\"\")","v":"On site Demo/Meeting"},{"$f":"IFERROR(IF(C14=TRUE,INDEX('Edit Your Custom HVT on TAB'!$D$5:$D$24,MATCH(HVT!$D14,'Edit Your Custom HVT on TAB'!$C$5:$C$24,0)),0),\"\")","v":0},true,{"$f":"IFERROR(INDEX('Edit Your Custom HVT on TAB'!$E$5:$E$24,MATCH(HVT!$A14,'Edit Your Custom HVT on TAB'!$B$5:$B$24,0)),\"\")","v":"Intro  Partner"},{"$f":"IFERROR(IF(F14=TRUE,INDEX('Edit Your Custom HVT on TAB'!$F$5:$F$24,MATCH(HVT!$G14,'Edit Your Custom HVT on TAB'!$E$5:$E$24,0)),0),\"\")","v":10}]
[11,null,true,{"$f":"IFERROR(INDEX('Edit Your Custom HVT on TAB'!$C$5:$C$24,MATCH(HVT!$A15,'Edit Your Custom HVT on TAB'!$B$5:$B$24,0)),\"\")","v":"Consulting/ROI Calculation"},{"$f":"IFERROR(IF(C15=TRUE,INDEX('Edit Your Custom HVT on TAB'!$D$5:$D$24,MATCH(HVT!$D15,'Edit Your Custom HVT on TAB'!$C$5:$C$24,0)),0),\"\")","v":11},true,{"$f":"IFERROR(INDEX('Edit Your Custom HVT on TAB'!$E$5:$E$24,MATCH(HVT!$A15,'Edit Your Custom HVT on TAB'!$B$5:$B$24,0)),\"\")","v":"Access To DM/Exec"},{"$f":"IFERROR(IF(F15=TRUE,INDEX('Edit Your Custom HVT on TAB'!$F$5:$F$24,MATCH(HVT!$G15,'Edit Your Custom HVT on TAB'!$E$5:$E$24,0)),0),\"\")","v":11}]
[12,null,false,{"$f":"IFERROR(INDEX('Edit Your Custom HVT on TAB'!$C$5:$C$24,MATCH(HVT!$A16,'Edit Your Custom HVT on TAB'!$B$5:$B$24,0)),\"\")","v":"NDA"},{"$f":"IFERROR(IF(C16=TRUE,INDEX('Edit Your Custom HVT on TAB'!$D$5:$D$24,MATCH(HVT!$D16,'Edit Your Custom HVT on TAB'!$C$5:$C$24,0)),0),\"\")","v":0},false,{"$f":"IFERROR(INDEX('Edit Your Custom HVT on TAB'!$E$5:$E$24,MATCH(HVT!$A16,'Edit Your Custom HVT on TAB'!$B$5:$B$24,0)),\"\")","v":"Champion"},{"$f":"IFERROR(IF(F16=TRUE,INDEX('Edit Your Custom HVT on TAB'!$F$5:$F$24,MATCH(HVT!$G16,'Edit Your Custom HVT on TAB'!$E$5:$E$24,0)),0),\"\")","v":0}]
[13,null,true,{"$f":"IFERROR(INDEX('Edit Your Custom HVT on TAB'!$C$5:$C$24,MATCH(HVT!$A17,'Edit Your Custom HVT on TAB'!$B$5:$B$24,0)),\"\")","v":"Quote Firm"},{"$f":"IFERROR(IF(C17=TRUE,INDEX('Edit Your Custom HVT on TAB'!$D$5:$D$24,MATCH(HVT!$D17,'Edit Your Custom HVT on TAB'!$C$5:$C$24,0)),0),\"\")","v":13},true,{"$f":"IFERROR(INDEX('Edit Your Custom HVT on TAB'!$E$5:$E$24,MATCH(HVT!$A17,'Edit Your Custom HVT on TAB'!$B$5:$B$24,0)),\"\")","v":"Intro to Procurement"},{"$f":"IFERROR(IF(F17=TRUE,INDEX('Edit Your Custom HVT on TAB'!$F$5:$F$24,MATCH(HVT!$G17,'Edit Your Custom HVT on TAB'!$E$5:$E$24,0)),0),\"\")","v":13}]
[14,null,false,{"$f":"IFERROR(INDEX('Edit Your Custom HVT on TAB'!$C$5:$C$24,MATCH(HVT!$A18,'Edit Your Custom HVT on TAB'!$B$5:$B$24,0)),\"\")","v":"Exec Engagement"},{"$f":"IFERROR(IF(C18=TRUE,INDEX('Edit Your Custom HVT on TAB'!$D$5:$D$24,MATCH(HVT!$D18,'Edit Your Custom HVT on TAB'!$C$5:$C$24,0)),0),\"\")","v":0},true,{"$f":"IFERROR(INDEX('Edit Your Custom HVT on TAB'!$E$5:$E$24,MATCH(HVT!$A18,'Edit Your Custom HVT on TAB'!$B$5:$B$24,0)),\"\")","v":"Red Line Contracts"},{"$f":"IFERROR(IF(F18=TRUE,INDEX('Edit Your Custom HVT on TAB'!$F$5:$F$24,MATCH(HVT!$G18,'Edit Your Custom HVT on TAB'!$E$5:$E$24,0)),0),\"\")","v":14}]
[15,null,true,{"$f":"IFERROR(INDEX('Edit Your Custom HVT on TAB'!$C$5:$C$24,MATCH(HVT!$A19,'Edit Your Custom HVT on TAB'!$B$5:$B$24,0)),\"\")","v":"Roadmap"},{"$f":"IFERROR(IF(C19=TRUE,INDEX('Edit Your Custom HVT on TAB'!$D$5:$D$24,MATCH(HVT!$D19,'Edit Your Custom HVT on TAB'!$C$5:$C$24,0)),0),\"\")","v":15},true,{"$f":"IFERROR(INDEX('Edit Your Custom HVT on TAB'!$E$5:$E$24,MATCH(HVT!$A19,'Edit Your Custom HVT on TAB'!$B$5:$B$24,0)),\"\")","v":"Intro to Business"},{"$f":"IFERROR(IF(F19=TRUE,INDEX('Edit Your Custom HVT on TAB'!$F$5:$F$24,MATCH(HVT!$G19,'Edit Your Custom HVT on TAB'!$E$5:$E$24,0)),0),\"\")","v":15}]
[{"$f":"A19+1","v":16},null,false,{"$f":"IFERROR(INDEX('Edit Your Custom HVT on TAB'!$C$5:$C$24,MATCH(HVT!$A20,'Edit Your Custom HVT on TAB'!$B$5:$B$24,0)),\"\")","v":"Reference Live"},{"$f":"IFERROR(IF(C20=TRUE,INDEX('Edit Your Custom HVT on TAB'!$D$5:$D$24,MATCH(HVT!$D20,'Edit Your Custom HVT on TAB'!$C$5:$C$24,0)),0),\"\")","v":0},false,{"$f":"IFERROR(INDEX('Edit Your Custom HVT on TAB'!$E$5:$E$24,MATCH(HVT!$A20,'Edit Your Custom HVT on TAB'!$B$5:$B$24,0)),\"\")","v":"Verbal Commitment"},{"$f":"IFERROR(IF(F20=TRUE,INDEX('Edit Your Custom HVT on TAB'!$F$5:$F$24,MATCH(HVT!$G20,'Edit Your Custom HVT on TAB'!$E$5:$E$24,0)),0),\"\")","v":0}]
[{"$f":"A20+1","v":17},null,false,{"$f":"IFERROR(INDEX('Edit Your Custom HVT on TAB'!$C$5:$C$24,MATCH(HVT!$A21,'Edit Your Custom HVT on TAB'!$B$5:$B$24,0)),\"\")","v":"RFP"},{"$f":"IFERROR(IF(C21=TRUE,INDEX('Edit Your Custom HVT on TAB'!$D$5:$D$24,MATCH(HVT!$D21,'Edit Your Custom HVT on TAB'!$C$5:$C$24,0)),0),\"\")","v":0},true,{"$f":"IFERROR(INDEX('Edit Your Custom HVT on TAB'!$E$5:$E$24,MATCH(HVT!$A21,'Edit Your Custom HVT on TAB'!$B$5:$B$24,0)),\"\")","v":"PO"},{"$f":"IFERROR(IF(F21=TRUE,INDEX('Edit Your Custom HVT on TAB'!$F$5:$F$24,MATCH(HVT!$G21,'Edit Your Custom HVT on TAB'!$E$5:$E$24,0)),0),\"\")","v":17}]
[18,null,false,{"$f":"IFERROR(INDEX('Edit Your Custom HVT on TAB'!$C$5:$C$24,MATCH(HVT!$A22,'Edit Your Custom HVT on TAB'!$B$5:$B$24,0)),\"\")","v":"Discount"},{"$f":"IFERROR(IF(C22=TRUE,INDEX('Edit Your Custom HVT on TAB'!$D$5:$D$24,MATCH(HVT!$D22,'Edit Your Custom HVT on TAB'!$C$5:$C$24,0)),0),\"\")","v":0},false,{"$f":"IFERROR(INDEX('Edit Your Custom HVT on TAB'!$E$5:$E$24,MATCH(HVT!$A22,'Edit Your Custom HVT on TAB'!$B$5:$B$24,0)),\"\")","v":"Case Study/Evolve"},{"$f":"IFERROR(IF(F22=TRUE,INDEX('Edit Your Custom HVT on TAB'!$F$5:$F$24,MATCH(HVT!$G22,'Edit Your Custom HVT on TAB'!$E$5:$E$24,0)),0),\"\")","v":0}]
[19,null,true,{"$f":"IFERROR(INDEX('Edit Your Custom HVT on TAB'!$C$5:$C$24,MATCH(HVT!$A23,'Edit Your Custom HVT on TAB'!$B$5:$B$24,0)),\"\")","v":"POC "},{"$f":"IFERROR(IF(C23=TRUE,INDEX('Edit Your Custom HVT on TAB'!$D$5:$D$24,MATCH(HVT!$D23,'Edit Your Custom HVT on TAB'!$C$5:$C$24,0)),0),\"\")","v":19},false,{"$f":"IFERROR(INDEX('Edit Your Custom HVT on TAB'!$E$5:$E$24,MATCH(HVT!$A23,'Edit Your Custom HVT on TAB'!$B$5:$B$24,0)),\"\")","v":"Paid POC"},{"$f":"IFERROR(IF(F23=TRUE,INDEX('Edit Your Custom HVT on TAB'!$F$5:$F$24,MATCH(HVT!$G23,'Edit Your Custom HVT on TAB'!$E$5:$E$24,0)),0),\"\")","v":0}]
[20,null,false,{"$f":"IFERROR(INDEX('Edit Your Custom HVT on TAB'!$C$5:$C$24,MATCH(HVT!$A24,'Edit Your Custom HVT on TAB'!$B$5:$B$24,0)),\"\")","v":""},{"$f":"IFERROR(IF(C24=TRUE,INDEX('Edit Your Custom HVT on TAB'!$D$5:$D$24,MATCH(HVT!$D24,'Edit Your Custom HVT on TAB'!$C$5:$C$24,0)),0),\"\")","v":0},false,{"$f":"IFERROR(INDEX('Edit Your Custom HVT on TAB'!$E$5:$E$24,MATCH(HVT!$A24,'Edit Your Custom HVT on TAB'!$B$5:$B$24,0)),\"\")","v":""},{"$f":"IFERROR(IF(F24=TRUE,INDEX('Edit Your Custom HVT on TAB'!$F$5:$F$24,MATCH(HVT!$G24,'Edit Your Custom HVT on TAB'!$E$5:$E$24,0)),0),\"\")","v":0}]
[]
[null,null,null,"Total Gives",{"$f":"SUM(E5:E24)","v":82},null,"Total Gets",{"$f":"SUM(H5:H24)","v":99}]
[null,null,null,"Points Left",{"$f":"SUM('Edit Your Custom HVT on TAB'!D5:D24)-E26","v":108},null,"Points Left",{"$f":"SUM('Edit Your Custom HVT on TAB'!F5:F24)-HVT!H26","v":91}]
[null,null,null,null,null,null,"Delta",{"$f":"E26-H26","v":-17}]
[]
[null,null,null,null,"Opportunity Status:",null,{"$f":"IF(ABS(H28)<11,\"Good Opportunity\",IF(ABS(H28)<21,\"Unbalanced Opportunity\",\"Poor Opportunity\"))","v":"Unbalanced Opportunity"}]

{"sheet":"Edit Your Custom HVT on TAB","index":1,"n_rows":49,"n_cols":6,"rows_kept":49,"cut":false,"hidden":false,"merged":[]}
[]
[]
[]
[null,null,"Gives","Points","Gets ","Points"]
[{"$f":"IF(AND(C5<>\"\",E5<>\"\"),1,0)","v":1},{"$f":"A5","v":1}," Literature",1,"Contact Info w Cell Phone",1]
[{"$f":"IF(AND(C6<>\"\",E6<>\"\"),1,0)","v":1},{"$f":"IF(A6>0,SUM($A$5:A6),0)","v":2},"Technical Documentation",2,"Budget/Timing ",2]
[1,{"$f":"IF(A7>0,SUM($A$5:A7),0)","v":3}," Meetings - Phone",3,"Partner Identify",3]
[1,{"$f":"IF(A8>0,SUM($A$5:A8),0)","v":4},"LinkedIn References/List",4,"CBI-Critical Business Issue",4]
[1,{"$f":"IF(A9>0,SUM($A$5:A9),0)","v":5},"Web Demo",5,"Customer Requirements Doc",5]
[1,{"$f":"IF(A10>0,SUM($A$5:A10),0)","v":6},"Quotation - Budgetary",6,"Accepted LinkedIn Invite ",6]
[1,{"$f":"IF(A11>0,SUM($A$5:A11),0)","v":7}," Legal/Contracts Meeting",7,"Procurement Process",7]
[1,{"$f":"IF(A12>0,SUM($A$5:A12),0)","v":8},"Competitive Data",8,"NDA",8]
[1,{"$f":"IF(A13>0,SUM($A$5:A13),0)","v":9},"Company Financials",9,"Financial Buyer",9]
[1,{"$f":"IF(A14>0,SUM($A$5:A14),0)","v":10},"On site Demo/Meeting",10,"Intro  Partner",10]
[1,{"$f":"IF(A15>0,SUM($A$5:A15),0)","v":11},"Consulting/ROI Calculation",11,"Access To DM/Exec",11]
[1,{"$f":"IF(A16>0,SUM($A$5:A16),0)","v":12},"NDA",12,"Champion",12]
[1,{"$f":"IF(A17>0,SUM($A$5:A17),0)","v":13},"Quote Firm",13,"Intro to Procurement",13]
[1,{"$f":"IF(A18>0,SUM($A$5:A18),0)","v":14},"Exec Engagement",14,"Red Line Contracts",14]
[1,{"$f":"IF(A19>0,SUM($A$5:A19),0)","v":15},"Roadmap",15,"Intro to Business",15]
[1,{"$f":"IF(A20>0,SUM($A$5:A20),0)","v":16},"Reference Live",16,"Verbal Commitment",16]
[1,{"$f":"IF(A21>0,SUM($A$5:A21),0)","v":17},"RFP",17,"PO",17]
[1,{"$f":"IF(A22>0,SUM($A$5:A22),0)","v":18},"Discount",18,"Case Study/Evolve",18]
[1,{"$f":"IF(A23>0,SUM($A$5:A23),0)","v":19},"POC ",19,"Paid POC",19]
[0,{"$f":"IF(A24>0,SUM($A$5:A24),0)","v":0}]
[]
[]
[]
[]
[]
[]
[]
[]
[]
[]
[]
[]
[]
[]
[]
[]
[]
[]
[]
[]
[]
[]
[]
[null,null,"© 2019 All Rights Reserved",null,"No warranty or liability implied  with the use of this tool and Sales Gauge "]
[null,null,null,null,"Use by a competitor Strictly Forbidden "]